Workbook

Sheet Computations Base
A1: Runway Saturation Capacity Estimation
A2: Using the Analyical Model for Runway Capacity
A4: Programmer: A. Trani (Fall 2022)
A5: Amendments: | B5: 2
A8: Technical Parameters (inputs) | E8: Parameter | F8: Values
A9: Dep-Arrival Separation (nm) | E9: d | F9: 2
A10: Common Approach Length (nm) | E10: g | F10: 10
A11: Standard deviation of Position Delivery Error (s) | E11: s | F11: 18
A12: Probability of Violation | E12: Pv | F12: 5
A13: Cumulative Normal at Pv | E13: qv | F13: =qv_computation(F12) -> 1.65
A14: Buffer for departure-departure (seconds) | F14: 10
B15: H | C15: G | D15: F | E15: B | F15: A
A16: ROT (s) | B16: 47 | C16: 48 | D16: 50 | E16: 60 | F16: 70 | H16: =B16*B17/100+C16*C17/100+D16*D17/100+E16*E17/100+F16*F17/100 -> 49.45 | I16: E(ROT)
A17: Percent Mix (%) | B17: 5 | C17: 45 | D17: 45 | E17: 5 | F17: 0 | H17: =B17+C17+D17+E17+F17 -> 100 | I17: Total %
A18: Vapproach (knots) | B18: 127 | C18: 134 | D18: 140 | E18: 150 | F18: 150
A20: Minimum Separation Matrix (nm) | D20: Arrivals-Arrivals
C21: Trailing Aircraft (Header Columns)
A22: Lead (column 1) | B22: =B15 -> H | C22: =C15 -> G | D22: =D15 -> F | E22: =E15 -> B | F22: =F15 -> A
A23: =B22 -> H | B23: 2.5 | C23: 2.5 | D23: 2.5 | E23: 2.5
A24: =C22 -> G | B24: 2.5 | C24: 2.5 | D24: 2.5 | E24: 2.5
A25: =D22 -> F | B25: 2.5 | C25: 2.5 | D25: 2.5 | E25: 2.5
A26: =E22 -> B | B26: 5 | C26: 5 | D26: 5 | E26: 2.5
A27: =F22 -> A
A29: Error Free Separation Matrix (Tij)
C30: Trailing Aircraft (Header Columns)
A31: Lead (column 1) | B31: =B22 -> H | C31: =C22 -> G | D31: F | E31: =E22 -> B | F31: =F22 -> A | H31: Expected Value
A32: =A23 -> H | B32: =B23/B$18*3600 -> 70.86614173 | C32: =C23/C$18*3600 -> 67.1641791 | D32: =D23/D$18*3600 -> 64.28571429 | E32: =E23/E$18*3600 -> 60 | H32: E(Tij)
A33: =A24 -> G | B33: =(B24/B$18+$F$10*(1/B$18-1/C$18))*3600 -> 85.67399224 | C33: =C24/C$18*3600 -> 67.1641791 | D33: =D24/D$18*3600 -> 64.28571429 | E33: =E24/E$18*3600 -> 60 | H33: =B32*B41+C32*C41+D32*D41+E32*E41+B33*B42+C33*C42+D33*D42+E33*E42+B34*B43+C34*C43+D34*D43+E34*E43+B35*B44+C35*C44+D35*D44+E35*E44+F32*F41+F33*F42+F34*F43+F35*F44+B36*B45+C36*C45+D36*D45+E36*E45+F36*F45 -> 73.18381336
A34: F | B34: =(B25/B$18+$F$10*(1/B$18-1/D$18))*3600 -> 97.18785152 | C34: =(C25/C$18+$F$10*(1/C$18-1/D$18))*3600 -> 78.67803838 | D34: =D25/D$18*3600 -> 64.28571429 | E34: =E25/E$18*3600 -> 60
A35: =E31 -> B | B35: =(B26/B$18+$F$10*(1/B$18-1/D$18))*3600 -> 168.0539933 | C35: =(C26/C$18+$F$10*(1/C$18-1/E$18))*3600 -> 162.9850746 | D35: =(D26/D$18+$F$10*(1/D$18-1/E$18))*3600 -> 145.7142857 | E35: =E26/E$18*3600 -> 60
A36: =F31 -> A
A38: Pij Matrix
C39: Trailing Aircraft (Header Columns)
A40: Lead (column 1) | B40: =B31 -> H | C40: =C31 -> G | D40: F | E40: B | F40: A | H40: Sum of Pij
A41: =A32 -> H | B41: =B17/100*B17/100 -> 0.0025 | C41: =B17/100*C17/100 -> 0.0225 | D41: =B17/100*D17/100 -> 0.0225 | E41: =B17/100*E17/100 -> 0.0025 | H41: =SUM(B41:F41) -> 0.05
A42: =A33 -> G | B42: =B17/100*C17/100 -> 0.0225 | C42: =C17/100*C17/100 -> 0.2025 | D42: =C17/100*D17/100 -> 0.2025 | E42: =C17/100*E17/100 -> 0.0225 | H42: =SUM(B42:F42) -> 0.45
A43: F | B43: =B17/100*D17/100 -> 0.0225 | C43: =C17/100*D17/100 -> 0.2025 | D43: =D17/100*D17/100 -> 0.2025 | E43: =D17/100*E17/100 -> 0.0225 | H43: =SUM(B43:F43) -> 0.45
A44: =E40 -> B | B44: =B17/100*E17/100 -> 0.0025 | C44: =C17/100*E17/100 -> 0.0225 | D44: =D17/100*E17/100 -> 0.0225 | E44: =E17/100*E17/100 -> 0.0025 | H44: =SUM(B44:F44) -> 0.05
A45: =F40 -> A | H45: =SUM(B45:F45) -> 0
H46: =SUM(H41:H45) -> 1
A47: Buffer Matrix (Bij)
C48: Trailing Aircraft (Header Columns)
A49: Lead (column 1) | B49: =B40 -> H | C49: =C40 -> G | D49: F | E49: B | F49: A | H49: Expected Value
A50: =B49 -> H | B50: =$F$13*$F$11 -> 29.7 | C50: =$F$13*$F$11 -> 29.7 | D50: =$F$13*$F$11 -> 29.7 | E50: =$F$13*$F$11 -> 29.7 | H50: B(Tij)
A51: =C49 -> G | B51: =MAX(0,($F$13*$F$11)-(B24*(1/B$18-1/C$18)*3600)) -> 25.99803737 | C51: =$F$13*$F$11 -> 29.7 | D51: =$F$13*$F$11 -> 29.7 | E51: =$F$13*$F$11 -> 29.7 | H51: =B41*B50+C50*C41+D41*D50+E41*E50+B42*B51+C42*C51+D42*D51+E42*E51+B43*B52+C43*C52+D43*D52+E43*E52+B44*B53+C44*C53+D44*D53+E44*E53+(F41*F50)+(F42*F51)+(F43*F52)+(F44*F53)+(B45*B54)+(C45*C54)+(D45*D54)+(E45*E54)+(F45*F54) -> 28.33760976
A52: =D49 -> F | B52: =MAX(0,$F$13*$F$11-B25*(1/B$18-1/D$18)*3600) -> 23.11957255 | C52: =MAX(0,$F$13*$F$11-C25*(1/C$18-1/D$18)*3600) -> 26.82153518 | D52: =$F$13*$F$11 -> 29.7 | E52: 29.7
A53: =E49 -> B | B53: =MAX(0,$F$13*$F$11-B26*(1/B$18-1/D$18)*3600) -> 16.53914511 | C53: =MAX(0,$F$13*$F$11-C26*(1/C$18-1/E$18)*3600) -> 15.37164179 | D53: 21.12857143 | E53: 29.7
A54: =F49 -> A
A56: Augmented Matrix (Tij + Bij)
C57: Trailing Aircraft (Header Columns)
A58: Lead (column 1) | B58: =B49 -> H | C58: =C49 -> G | D58: F | E58: B | F58: A | H58: Expected Value
A59: =B58 -> H | B59: =B50+B32 -> 100.5661417 | C59: 96.8641791 | D59: 93.98571429 | E59: 89.7 | H59: E(Tij) + B(Tij)
A60: =C58 -> G | B60: 111.6720296 | C60: 96.8641791 | D60: =D51+D33 -> 93.98571429 | E60: 89.7 | H60: =B59*B41+C59*C41+D59*D41+E59*E41+B60*B42+C60*C42+D60*D42+E60*E42+B61*B43+C61*C43+D61*D43+E61*E43+B62*B44+C62*C44+D62*D44+E62*E44+B45*B63+C45*C63+D45*D63+E45*E63+F41*F59+F42*F60+F43*F61+F44*F62+F45*F63 -> 101.5214231
A61: =D58 -> F | B61: 120.3074241 | C61: 105.4995736 | D61: =D52+D34 -> 93.98571429 | E61: 89.7
A62: =E58 -> B | B62: 184.5931384 | C62: 178.3567164 | D62: =D53+D35 -> 166.8428571 | E62: 89.7
A63: =F58 -> A
A65: Arrivals Only Capacity (per hour) | D65: =3600/H60 -> 35.46049582
A68: Minimum Departure-Departure Separation Matrix (seconds)
C69: Trailing Aircraft (Header Columns)
A70: Lead (column 1) | B70: =B58 -> H | C70: =C58 -> G | D70: F | E70: B | F70: A | H70: Expected Value
A71: =B70 -> H | B71: 60 | C71: 60 | D71: 60 | E71: 60 | H71: E(Td)
A72: =C70 -> G | B72: 60 | C72: 60 | D72: 60 | E72: 60
A73: =D70 -> F | B73: 60 | C73: 60 | D73: 60 | E73: 60 | H73: =B71*$B$41+C71*$C$41+D71*$D$41+E71*$E$41+F41*$F$71+B72*$B$42+C72*$C$42+D72*$D$42+E72*$E$42+F72*$F$42+B73*$B$43+C73*$C$43+D73*$D$43+E73*$E$43+F73*$F$43+B74*$B$44+C74*$C$44+D74*$D$44+E74*$E$44+F74*$F$44+$B$45*B75+$C$45*C75+$D$45*D75+$E$45*E75+$F$45*F75 -> 63
A74: =E70 -> B | B74: 120 | C74: 120 | D74: 120 | E74: 120
A75: =F70 -> A
A77: Departures Only Capacity (per hour) without buffers | D77: =3600/H73 -> 57.14285714
A79: Departure-Departure Separation Matrix with Departure Buffers (seconds)
C80: Trailing Aircraft (Header Columns)
A81: Lead (column 1) | B81: =B70 -> H | C81: =C70 -> G | D81: F | E81: B | F81: A | H81: Expected Value
A82: =B81 -> H | B82: =B71+$F$14 -> 70 | C82: =C71+$F$14 -> 70 | D82: 70 | E82: 70 | H82: E(Td)
A83: =C81 -> G | B83: =B72+$F$14 -> 70 | C83: 70 | D83: 70 | E83: 70
A84: =D81 -> F | B84: =B73+$F$14 -> 70 | C84: 70 | D84: 70 | E84: 70 | H84: =B82*$B$41+C82*$C$41+D82*$D$41+E82*$E$41+F52*$F$71+B83*$B$42+C83*$C$42+D83*$D$42+E83*$E$42+F83*$F$42+B84*$B$43+C84*$C$43+D84*$D$43+E84*$E$43+F84*$F$43+B85*$B$44+C85*$C$44+D85*$D$44+E85*$E$44+F85*$F$44+$B$45*B86+$C$45*C86+$D$45*D86+$E$45*E86+$F$45*F86 -> 73
A85: =E81 -> B | B85: =B74+$F$14 -> 130 | C85: 130 | D85: 130 | E85: 130
A86: =F81 -> A
A88: Departures Only Capacity (per hour) - includes departure buffers | D88: =3600/H84 -> 49.31506849
A91: Estimation of Critical Departure Gaps
E92: E(ROT) | F92: =H16 -> 49.45
A93: Departures | C93: Gap (EDTij) | E93: E(d/Vj) | F93: =($F$9/B$18*B17/100+$F$9/C$18*C17/100+F$9/D$18*D17/100+F$9/E$18*E17/100+F$9/F$18*F17/100)*3600 -> 52.55660729
A94: 1 | C94: =$F$92+$F$93+$F$94+(A94-1)*$H$73 -> 112.0066073 | E94: Clear to Roll Time | F94: 10
A95: 2 | C95: =$F$92+$F$93+$F$94+(A95-1)*$H$73 -> 175.0066073
A96: 3 | C96: =$F$92+$F$93+$F$94+(A96-1)*$H$73 -> 238.0066073
A97: 4 | C97: =$F$92+$F$93+$F$94+(A97-1)*$H$73 -> 301.0066073
A98: 5 | C98: =$F$92+$F$93+$F$94+(A98-1)*$H$73 -> 364.0066073
A101: Departures per Gap
C102: Trailing Aircraft (Header Columns)
A103: Lead (column 1) | B103: =B81 -> H | C103: =C81 -> G | D103: F
A104: =B103 -> H | B104: =no_of_departures(B59,$C$94,$C$95,$C$96,$C$97) -> 0 | C104: 0 | D104: 0 | E104: 0 | F104: 0
A105: =C103 -> G | B105: 0 | C105: 0 | D105: 0 | E105: 0 | F105: 0
A106: =D103 -> F | B106: 1 | C106: 0 | D106: 0 | E106: 0 | F106: 0
B107: 2 | C107: 2 | D107: 1 | E107: 0 | F107: 0
B108: 0 | C108: 0 | D108: 0 | E108: 0 | F108: 0
A110: Departures per hour with 100% Arrival Priority
C112: Trailing Aircraft (Header Columns)
A113: Lead (column 1) | B113: =B103 -> H | C113: =C103 -> G | D113: F | G113: Sum
A114: =B113 -> H | B114: =B104*($D$65-1)*B41 -> 0 | C114: 0 | D114: 0 | E114: 0 | F114: 0 | G114: =B114+C114+D114+E114+F114 -> 0
A115: =C113 -> G | B115: 0 | C115: 0 | D115: 0 | E115: 0 | F115: 0 | G115: =B115+C115+D115+E115+F115 -> 0
A116: =D113 -> F | B116: 0.7753611559 | C116: 0 | D116: 0 | E116: 0 | F116: 0 | G116: =B116+C116+D116+E116+F116 -> 0.7753611559
B117: 0.1723024791 | C117: 1.550722312 | D117: 0.7753611559 | E117: 0 | F117: 0 | G117: =B117+C117+D117+E117+F117 -> 2.498385947
B118: 0 | C118: 0 | D118: 0 | E118: 0 | F118: 0 | G118: =B118+C118+D118+E118+F118 -> 0
G119: =SUM(G114:G118) -> 3.273747103 | H119: Total Departures
A120: Summary for Arrival - Departure Diagram | H120: with 100% arrival priority
A122: Arrivals | B122: Departures | D122: Operation Pattern
A123: =D65 -> 35.46049582 | B123: 0 | D123: Arrivals Only | G123: Baseline
A124: =A123 -> 35.46049582 | B124: =G119 -> 3.273747103 | D124: 100% Arrivals + Departures | G124: Baseline
A125: ='Comp 2'!D65 -> 23.1517286 | B125: ='Comp 2'!G119 -> 24.25614282 | G125: Comp 2
A126: 0 | B126: =D88 -> 49.31506849 | D126: Departures Only | G126: Baseline
A164: 45 | B164: 0
A165: 45 | B165: 4.84
A166: 45 | B166: 20.1289
A167: 45 | B167: 58.31045458
A168: 0 | B168: 58.31

Sheet Program Description
A1: Simple Runway Saturation Capacity Program
A3: Implements the analyical procedure developed
A4: by W. Harris (at the MITRE Corporation)
A5: to estimate a single runway saturation capacity.
A7: This analytical procedure does not compute
A8: runway delay so another suitable method should be employed to
A9: estimate delay. A complementary approach to estimate
A10: delay would be to use queueing theory (see course notes).
A12: NOTE: This program only computes the saturation
A13: capacity for one runway. If multiple runways exist
A14: you can use a variation of the method to estimate
A15: the saturation capacity of the entire airport as follows:
A17: a) If runways are independent (check mimimum separation
A18: criteria) then the saturation capacity is just a multiple of the single runway capacity
A20: b) If runway operations are dependent (check separation criteria)
A21: then select a primary runway and estimate the capacity of this facility.
A22: Then select each remaining runway and iteratively create a feasible
A23: operations diagram so that time gaps left empty in the first runway
A24: are used by aircraft operating from other runways. This process
A25: requires some thinking and perhaps some local knowledge of how
A26: the airport is operated. Consult the ATC facility to get this information.

Sheet Comp 2
A1: Runway Saturation Capacity Estimation
A2: Using the Analyical Model for Runway Capacity
A4: Programmer: A. Trani (August 2019)
A5: Amendments: | B5: 1
A8: Technical Parameters (inputs) | E8: Parameter | F8: Values
A9: Dep-Arrival Separation (nm) | E9: d | F9: ='Computations Base'!F9 -> 2
A10: Common Approach Length (nm) | E10: g | F10: ='Computations Base'!F10 -> 10
A11: Standard deviation of Position Delivery Error (s) | E11: s | F11: ='Computations Base'!F11 -> 18
A12: Probability of Violation | E12: Pv | F12: ='Computations Base'!F12 -> 5 | H12: Clear to roll
A13: Cumulative Normal at Pv | E13: qv | F13: ='Computations Base'!F13 -> 1.65 | H13: 10
A14: Buffer for departure-departure (seconds) | F14: ='Computations Base'!F14 -> 10
B15: H | C15: G | D15: F | E15: B | F15: A
A16: ROT (s) | B16: ='Computations Base'!B16 -> 47 | C16: ='Computations Base'!C16 -> 48 | D16: ='Computations Base'!D16 -> 50 | E16: ='Computations Base'!E16 -> 60 | F16: ='Computations Base'!F16 -> 70 | H16: =B16*B17/100+C16*C17/100+D16*D17/100+E16*E17/100+F16*F17/100 -> 49.45 | I16: E(ROT)
A17: Percent Mix (%) | B17: ='Computations Base'!B17 -> 5 | C17: ='Computations Base'!C17 -> 45 | D17: ='Computations Base'!D17 -> 45 | E17: ='Computations Base'!E17 -> 5 | F17: ='Computations Base'!F17 -> 0 | H17: =B17+C17+D17+E17+F17 -> 100 | I17: Total %
A18: Vapproach (knots) | B18: ='Computations Base'!B18 -> 127 | C18: ='Computations Base'!C18 -> 134 | D18: ='Computations Base'!D18 -> 140 | E18: ='Computations Base'!E18 -> 150 | F18: ='Computations Base'!F18 -> 150
A20: Minimum Separation Matrix (nm) | D20: Arrivals-Arrivals | H20: Multiplier
C21: Trailing Aircraft (Header Columns) | H21: 1.8
A22: Lead (column 1) | B22: =B15 -> H | C22: =C15 -> G | D22: =D15 -> F | E22: =E15 -> B | F22: =F15 -> A
A23: =B22 -> H | B23: ='Computations Base'!B23*'Comp 2'!$H$21 -> 4.5 | C23: ='Computations Base'!C23*'Comp 2'!$H$21 -> 4.5 | D23: ='Computations Base'!D23*'Comp 2'!$H$21 -> 4.5 | E23: ='Computations Base'!E23*'Comp 2'!$H$21 -> 4.5 | F23: ='Computations Base'!F23*'Comp 2'!$H$21 -> 0
A24: =C22 -> G | B24: ='Computations Base'!B24*'Comp 2'!$H$21 -> 4.5 | C24: ='Computations Base'!C24*'Comp 2'!$H$21 -> 4.5 | D24: ='Computations Base'!D24*'Comp 2'!$H$21 -> 4.5 | E24: ='Computations Base'!E24*'Comp 2'!$H$21 -> 4.5 | F24: ='Computations Base'!F24*'Comp 2'!$H$21 -> 0
A25: =D22 -> F | B25: ='Computations Base'!B25*'Comp 2'!$H$21 -> 4.5 | C25: ='Computations Base'!C25*'Comp 2'!$H$21 -> 4.5 | D25: ='Computations Base'!D25*'Comp 2'!$H$21 -> 4.5 | E25: ='Computations Base'!E25*'Comp 2'!$H$21 -> 4.5 | F25: ='Computations Base'!F25*'Comp 2'!$H$21 -> 0
A26: =E22 -> B | B26: ='Computations Base'!B26*'Comp 2'!$H$21 -> 9 | C26: ='Computations Base'!C26*'Comp 2'!$H$21 -> 9 | D26: ='Computations Base'!D26*'Comp 2'!$H$21 -> 9 | E26: ='Computations Base'!E26*'Comp 2'!$H$21 -> 4.5 | F26: ='Computations Base'!F26*'Comp 2'!$H$21 -> 0
A27: =F22 -> A | B27: ='Computations Base'!B27*'Comp 2'!$H$21 -> 0 | C27: ='Computations Base'!C27*'Comp 2'!$H$21 -> 0 | D27: ='Computations Base'!D27*'Comp 2'!$H$21 -> 0 | E27: ='Computations Base'!E27*'Comp 2'!$H$21 -> 0 | F27: ='Computations Base'!F27*'Comp 2'!$H$21 -> 0
A29: Error Free Separation Matrix
C30: Trailing Aircraft (Header Columns)
A31: Lead (column 1) | B31: =B22 -> H | C31: =C22 -> G | D31: F | E31: B | F31: A | H31: Expected Value
A32: =B31 -> H | B32: =B23/B$18*3600 -> 127.5590551 | C32: =C23/C$18*3600 -> 120.8955224 | D32: =D23/D$18*3600 -> 115.7142857 | E32: =E23/E$18*3600 -> 108 | H32: E(Tij)
A33: =C31 -> G | B33: =(B24/B$18+$F$10*(1/B$18-1/C$18))*3600 -> 142.3669056 | C33: =C24/C$18*3600 -> 120.8955224 | D33: =D24/D$18*3600 -> 115.7142857 | E33: =E24/E$18*3600 -> 108 | H33: =B32*B41+C32*C41+D32*D41+E32*E41+B33*B42+C33*C42+D33*D42+E33*E42+B34*B43+C34*C43+D34*D43+E34*E43+B35*B44+C35*C44+D35*D44+E35*E44+F32*F41+F33*F42+F34*F43+F35*F44+B36*B45+C36*C45+D36*D45+E36*E45+F36*F45 -> 128.248251
A34: =D31 -> F | B34: =(B25/B$18+$F$10*(1/B$18-1/D$18))*3600 -> 153.8807649 | C34: =(C25/C$18+$F$10*(1/C$18-1/D$18))*3600 -> 132.4093817 | D34: =D25/D$18*3600 -> 115.7142857 | E34: =E25/E$18*3600 -> 108
A35: =E31 -> B | B35: =(B26/B$18+$F$10*(1/B$18-1/D$18))*3600 -> 281.43982 | C35: =(C26/C$18+$F$10*(1/C$18-1/E$18))*3600 -> 270.4477612 | D35: =(D26/D$18+$F$10*(1/D$18-1/E$18))*3600 -> 248.5714286 | E35: =E26/E$18*3600 -> 108
A36: =F31 -> A
A38: Pij Matrix
C39: Trailing Aircraft (Header Columns)
A40: Lead (column 1) | B40: =B31 -> H | C40: =C31 -> G | D40: F | E40: B | F40: A | H40: Sum of Pij
A41: =B40 -> H | B41: =B17/100*B17/100 -> 0.0025 | C41: =B17/100*C17/100 -> 0.0225 | D41: =B17/100*D17/100 -> 0.0225 | E41: =B17/100*E17/100 -> 0.0025 | H41: =SUM(B41:F41) -> 0.05
A42: =C40 -> G | B42: =B17/100*C17/100 -> 0.0225 | C42: =C17/100*C17/100 -> 0.2025 | D42: =C17/100*D17/100 -> 0.2025 | E42: =C17/100*E17/100 -> 0.0225 | H42: =SUM(B42:F42) -> 0.45
A43: =D40 -> F | B43: =B17/100*D17/100 -> 0.0225 | C43: =C17/100*D17/100 -> 0.2025 | D43: =D17/100*D17/100 -> 0.2025 | E43: =D17/100*E17/100 -> 0.0225 | H43: =SUM(B43:F43) -> 0.45
A44: =E40 -> B | B44: =B17/100*E17/100 -> 0.0025 | C44: =C17/100*E17/100 -> 0.0225 | D44: =D17/100*E17/100 -> 0.0225 | E44: =E17/100*E17/100 -> 0.0025 | H44: =SUM(B44:F44) -> 0.05
A45: =F40 -> A | H45: =SUM(B45:F45) -> 0
H46: =SUM(H41:H45) -> 1
A47: Buffer Matrix (Bij)
C48: Trailing Aircraft (Header Columns)
A49: Lead (column 1) | B49: =B40 -> H | C49: =C40 -> G | D49: F | E49: B | F49: A | H49: Expected Value
A50: =B49 -> H | B50: =$F$13*$F$11 -> 29.7 | C50: =$F$13*$F$11 -> 29.7 | D50: =$F$13*$F$11 -> 29.7 | E50: =$F$13*$F$11 -> 29.7 | H50: B(Tij)
A51: =C49 -> G | B51: =MAX(0,($F$13*$F$11)-(B24*(1/B$18-1/C$18)*3600)) -> 23.03646727 | C51: =$F$13*$F$11 -> 29.7 | D51: =$F$13*$F$11 -> 29.7 | E51: =$F$13*$F$11 -> 29.7 | H51: =B41*B50+C50*C41+D41*D50+E41*E50+B42*B51+C42*C51+D42*D51+E42*E51+B43*B52+C43*C52+D43*D52+E43*E52+B44*B53+C44*C53+D44*D53+E44*E53+(F41*F50)+(F42*F51)+(F43*F52)+(F44*F53)+(B45*B54)+(C45*C54)+(D45*D54)+(E45*E54)+(F45*F54) -> 27.24769756
A52: =D49 -> F | B52: =MAX(0,$F$13*$F$11-B25*(1/B$18-1/D$18)*3600) -> 17.8552306 | C52: =MAX(0,$F$13*$F$11-C25*(1/C$18-1/D$18)*3600) -> 24.51876333 | D52: =$F$13*$F$11 -> 29.7 | E52: 29.7
A53: =E49 -> B | B53: =MAX(0,$F$13*$F$11-B26*(1/B$18-1/D$18)*3600) -> 6.010461192 | C53: =MAX(0,$F$13*$F$11-C26*(1/C$18-1/E$18)*3600) -> 3.908955224 | D53: 14.27142857 | E53: 29.7
A54: =F49 -> A
A56: Augmented Matrix (Tij + Bij)
C57: Trailing Aircraft (Header Columns)
A58: Lead (column 1) | B58: =B49 -> H | C58: =C49 -> G | D58: =D49 -> F | E58: =E49 -> B | F58: A | H58: Expected Value
A59: =B58 -> H | B59: =B50+B32 -> 157.2590551 | C59: 150.5955224 | D59: 145.4142857 | E59: 137.7 | H59: E(Tij) + B(Tij)
A60: =C58 -> G | B60: 165.4033729 | C60: 150.5955224 | D60: 145.4142857 | E60: 137.7 | H60: =B59*B41+C59*C41+D59*D41+E59*E41+B60*B42+C60*C42+D60*D42+E60*E42+B61*B43+C61*C43+D61*D43+E61*E43+B62*B44+C62*C44+D62*D44+E62*E44+B45*B63+C45*C63+D45*D63+E45*E63+F41*F59+F42*F60+F43*F61+F44*F62+F45*F63 -> 155.4959486
A61: =D58 -> F | B61: 171.7359955 | C61: 156.928145 | D61: 145.4142857 | E61: 137.7
A62: =E58 -> B | B62: 287.4502812 | C62: 274.3567164 | D62: 262.8428571 | E62: 137.7
A63: =F58 -> A
A65: Arrivals Only Capacity (per hour) | D65: =3600/H60 -> 23.1517286
A68: Departure-Departure Separation Matrix (seconds)
C69: Trailing Aircraft (Header Columns) | L69: Trailing
A70: Lead (column 1) | B70: =B58 -> H | C70: =C58 -> G | D70: =D58 -> F | E70: =E58 -> B | F70: A | H70: Expected Value | K70: Small | L70: Large | M70: B757 | N70: Heavy | O70: S-Heavy | P70: Expected Value
A71: =B70 -> H | B71: ='Computations Base'!B71 -> 60 | C71: ='Computations Base'!C71 -> 60 | D71: ='Computations Base'!D71 -> 60 | E71: ='Computations Base'!E71 -> 60 | F71: ='Computations Base'!F71 -> 0 | H71: E(Td) | K71: 10 | L71: 10 | M71: 10 | N71: 10 | O71: 10 | P71: E(Td)
A72: =C70 -> G | B72: ='Computations Base'!B72 -> 60 | C72: ='Computations Base'!C72 -> 60 | D72: ='Computations Base'!D72 -> 60 | E72: ='Computations Base'!E72 -> 60 | F72: ='Computations Base'!F72 -> 0 | K72: 10 | L72: 10 | M72: 10 | N72: 10 | O72: 10
A73: =D70 -> F | B73: ='Computations Base'!B73 -> 60 | C73: ='Computations Base'!C73 -> 60 | D73: ='Computations Base'!D73 -> 60 | E73: ='Computations Base'!E73 -> 60 | F73: ='Computations Base'!F73 -> 0 | H73: =B71*$B$41+C71*$C$41+D71*$D$41+E71*$E$41+F41*$F$71+B72*$B$42+C72*$C$42+D72*$D$42+E72*$E$42+F72*$F$42+B73*$B$43+C73*$C$43+D73*$D$43+E73*$E$43+F73*$F$43+B74*$B$44+C74*$C$44+D74*$D$44+E74*$E$44+F74*$F$44+$B$45*B75+$C$45*C75+$D$45*D75+$E$45*E75+$F$45*F75 -> 63 | K73: 10 | L73: 10 | M73: 10 | N73: 10 | O73: 10 | P73: =K71*I41+L71*J41+M71*K41+N71*L41+K72*I42+L72*J42+M72*K42+N72*L42+K73*I43+L73*J43+M73*K43+N73*L43+K74*I44+L74*J44+M74*K44+N74*L44 -> 0
A74: =E70 -> B | B74: ='Computations Base'!B74 -> 120 | C74: ='Computations Base'!C74 -> 120 | D74: ='Computations Base'!D74 -> 120 | E74: ='Computations Base'!E74 -> 120 | F74: ='Computations Base'!F74 -> 0 | K74: 10 | L74: 10 | M74: 10 | N74: 10 | O74: 10
A75: =F70 -> A | B75: ='Computations Base'!B75 -> 0 | C75: ='Computations Base'!C75 -> 0 | D75: ='Computations Base'!D75 -> 0 | E75: ='Computations Base'!E75 -> 0 | F75: ='Computations Base'!F75 -> 0 | K75: 10 | L75: 10 | M75: 10 | N75: 10 | O75: 10
A77: Departures Only Capacity (per hour) without buffers | D77: =3600/H73 -> 57.14285714
A79: Departure-Departure Separation Matrix with Buffers (seconds)
C80: Trailing Aircraft (Header Columns)
A81: Lead (column 1) | B81: =B70 -> H | C81: =C70 -> G | D81: F | E81: B | F81: A | H81: Expected Value
A82: =B81 -> H | B82: ='Computations Base'!B82 -> 70 | C82: ='Computations Base'!C82 -> 70 | D82: ='Computations Base'!D82 -> 70 | E82: ='Computations Base'!E82 -> 70 | F82: ='Computations Base'!F82 -> 0 | H82: E(Td)
A83: =C81 -> G | B83: ='Computations Base'!B83 -> 70 | C83: ='Computations Base'!C83 -> 70 | D83: ='Computations Base'!D83 -> 70 | E83: ='Computations Base'!E83 -> 70 | F83: ='Computations Base'!F83 -> 0
A84: =D81 -> F | B84: ='Computations Base'!B84 -> 70 | C84: ='Computations Base'!C84 -> 70 | D84: ='Computations Base'!D84 -> 70 | E84: ='Computations Base'!E84 -> 70 | F84: ='Computations Base'!F84 -> 0 | H84: =B82*$B$41+C82*$C$41+D82*$D$41+E82*$E$41+F52*$F$71+B83*$B$42+C83*$C$42+D83*$D$42+E83*$E$42+F83*$F$42+B84*$B$43+C84*$C$43+D84*$D$43+E84*$E$43+F84*$F$43+B85*$B$44+C85*$C$44+D85*$D$44+E85*$E$44+F85*$F$44+$B$45*B86+$C$45*C86+$D$45*D86+$E$45*E86+$F$45*F86 -> 73
A85: =E81 -> B | B85: ='Computations Base'!B85 -> 130 | C85: ='Computations Base'!C85 -> 130 | D85: ='Computations Base'!D85 -> 130 | E85: ='Computations Base'!E85 -> 130 | F85: ='Computations Base'!F85 -> 0
A86: =F81 -> A | B86: ='Computations Base'!B86 -> 0 | C86: ='Computations Base'!C86 -> 0 | D86: ='Computations Base'!D86 -> 0 | E86: ='Computations Base'!E86 -> 0 | F86: ='Computations Base'!F86 -> 0
A88: Departures Only Capacity (per hour) - includes departure buffers | D88: =3600/H84 -> 49.31506849
A91: Estimation of Critical Departure Gaps
E92: E(ROT) | F92: =H16 -> 49.45
A93: Departures | C93: Gap (EDTij) | E93: E(d/Vj) | F93: =($F$9/B$18*B17/100+$F$9/C$18*C17/100+F$9/D$18*D17/100+F$9/E$18*E17/100+F$9/F$18*F17/100)*3600 -> 52.55660729
A94: 1 | C94: =$F$92+$F$93+$F$94+(A94-1)*$H$73 -> 112.0066073 | F94: =H13 -> 10
A95: 2 | C95: =$F$92+$F$93+$F$94+(A95-1)*$H$73 -> 175.0066073
A96: 3 | C96: =$F$92+$F$93+$F$94+(A96-1)*$H$73 -> 238.0066073
A97: 4 | C97: =$F$92+$F$93+$F$94+(A97-1)*$H$73 -> 301.0066073
A98: 5 | C98: =$F$92+$F$93+$F$94+(A98-1)*$H$73 -> 364.0066073
A101: Departures per Gap
C102: Trailing Aircraft (Header Columns)
A103: Lead (column 1) | B103: =B81 -> H | C103: =C81 -> G | D103: F | E103: B | F103: A
A104: =B103 -> H | B104: =no_of_departures(B59,$C$94,$C$95,$C$96,$C$97) -> 1 | C104: 1 | D104: 1 | E104: =no_of_departures(E59,$C$94,$C$95,$C$96,$C$97) -> 1 | F104: 0
A105: =C103 -> G | B105: 1 | C105: 1 | D105: 1 | E105: 1 | F105: 0
A106: =D103 -> F | B106: 1 | C106: 1 | D106: 1 | E106: 1 | F106: 0
A107: =E103 -> B | B107: 3 | C107: 3 | D107: 3 | E107: 1 | F107: 0
A108: =F103 -> A | B108: 0 | C108: 0 | D108: 0 | E108: 0 | F108: 0
A110: Departures per hour with 100% Arrival Priority
C112: Trailing Aircraft (Header Columns)
A113: Lead (column 1) | B113: =B103 -> H | C113: =C103 -> G | D113: F | E113: B | F113: A | G113: Sum
A114: =B113 -> H | B114: =B104*($D$65-1)*B41 -> 0.0553793215 | C114: 0.4984138935 | D114: 0.4984138935 | E114: 0.0553793215 | F114: 0 | G114: =B114+C114+D114+E114+F114 -> 1.10758643
A115: =C113 -> G | B115: 0.4984138935 | C115: 4.485725042 | D115: 4.485725042 | E115: 0.4984138935 | F115: 0 | G115: =B115+C115+D115+E115+F115 -> 9.968277871
A116: =D113 -> F | B116: 0.4984138935 | C116: 4.485725042 | D116: 4.485725042 | E116: 0.4984138935 | F116: 0 | G116: =B116+C116+D116+E116+F116 -> 9.968277871
A117: =E113 -> B | B117: 0.1661379645 | C117: 1.495241681 | D117: 1.495241681 | E117: 0.0553793215 | F117: 0 | G117: =B117+C117+D117+E117+F117 -> 3.212000647
A118: =F113 -> A | B118: 0 | C118: 0 | D118: 0 | E118: 0 | F118: 0 | G118: =B118+C118+D118+E118+F118 -> 0
G119: =SUM(G114:G118) -> 24.25614282 | H119: Total Departures
A120: Summary for Arrival - Departure Diagram | H120: with 100% arrival priority
